[Event "*** Titled Tuesday Blitz"]
[Site "Chess.com"]
[Date "2020.05.26"]
[Round "7"]
[White "Kobalia"]
[Black "Xtrmntr78"]
[Result "1-0"]
[WhiteElo "2778"]
[BlackElo "2437"]
[TimeControl "180+1"]
[EndTime "11:17:59 PDT"]
[Termination "Kobalia won by resignation"]

1. e4 {[%clk 0:03:00.9]} 1... e5 {[%clk 0:02:59.4]} 2. Nf3 {[%clk 0:03:00.6]}
2... d5 {[%clk 0:02:59.9]} 3. Nxe5 {[%clk 0:02:54.6]} 3... Bd6 {[%clk
0:03:00.3]} 4. d4 {[%clk 0:02:53.3]} 4... dxe4 {[%clk 0:03:00.7]} 5. Qe2 {[%clk
0:02:41.4]} 5... Nf6 {[%clk 0:02:58.5]} 6. Bg5 {[%clk 0:02:39.7]} 6... Bf5
{[%clk 0:02:55.8]} 7. Nc3 {[%clk 0:02:38.9]} 7... O-O {[%clk 0:02:51.8]} 8. g4
{[%clk 0:02:38.5]} 8... Bg6 {[%clk 0:02:48.7]} 9. h4 {[%clk 0:02:37.2]} 9...
Bxe5 {[%clk 0:02:35.4]} 10. dxe5 {[%clk 0:02:36.5]} 10... h6 {[%clk 0:02:35.8]}
11. Rd1 {[%clk 0:02:29.9]} 11... Qe8 {[%clk 0:02:31.5]} 12. exf6 {[%clk
0:02:26.4]} 12... hxg5 {[%clk 0:02:30.6]} 13. hxg5 {[%clk 0:02:26.7]} 13... Qe5
{[%clk 0:02:18.7]} 14. Qe3 {[%clk 0:02:26.3]} 14... gxf6 {[%clk 0:02:11.3]} 15.
gxf6 {[%clk 0:02:21.8]} 15... Qxf6 {[%clk 0:01:37.2]} 16. Nd5 {[%clk 0:02:21]}
16... Qe5 {[%clk 0:01:36]} 17. f4 {[%clk 0:02:18.2]} 17... Qd6 {[%clk
0:01:14.9]} 18. f5 {[%clk 0:02:03.4]} 18... c6 {[%clk 0:01:09.1]} 19. f6 {[%clk
0:01:53.9]} 1-0

[Event "*** Titled Tuesday Blitz"]
[Site "Chess.com"]
[Date "2020.05.26"]
[Round "7"]
[White "Danfii"]
[Black "Semen_Khanin"]
[Result "0-1"]
[WhiteElo "2426"]
[BlackElo "2714"]
[TimeControl "180+1"]
[EndTime "11:18:14 PDT"]
[Termination "Semen_Khanin won by resignation"]

1. e4 {[%clk 0:03:00.9]} 1... c5 {[%clk 0:02:59.7]} 2. Nf3 {[%clk 0:03:00.8]}
2... e6 {[%clk 0:03:00.1]} 3. d4 {[%clk 0:03:00.9]} 3... cxd4 {[%clk 0:03:01]}
4. Nxd4 {[%clk 0:03:01.7]} 4... Nc6 {[%clk 0:03:01.9]} 5. Nc3 {[%clk 0:03:01.7]}
5... Qc7 {[%clk 0:03:02.3]} 6. Be3 {[%clk 0:03:02.3]} 6... a6 {[%clk 0:03:02.8]}
7. Qf3 {[%clk 0:03:03]} 7... Nf6 {[%clk 0:02:58.1]} 8. O-O-O {[%clk 0:03:02.5]}
8... h5 {[%clk 0:02:58.7]} 9. Qg3 {[%clk 0:02:53.6]} 9... Qxg3 {[%clk
0:02:37.6]} 10. hxg3 {[%clk 0:02:54.5]} 10... Ng4 {[%clk 0:02:37.9]} 11. Nxc6
{[%clk 0:02:40.1]} 11... Nxe3 {[%clk 0:02:37.6]} 12. fxe3 {[%clk 0:02:39]} 12...
dxc6 {[%clk 0:02:38.2]} 13. Be2 {[%clk 0:02:36.6]} 13... e5 {[%clk 0:02:38]} 14.
Rxh5 {[%clk 0:02:34.7]} 14... Rxh5 {[%clk 0:02:37.4]} 15. Bxh5 {[%clk
0:02:35.6]} 15... Be6 {[%clk 0:02:35.3]} 16. a3 {[%clk 0:02:20.7]} 16... Bc5
{[%clk 0:02:35.1]} 17. Re1 {[%clk 0:02:18.7]} 17... b5 {[%clk 0:02:33]} 18. Nb1
{[%clk 0:02:16.4]} 18... Ke7 {[%clk 0:02:30.1]} 19. Nd2 {[%clk 0:02:14.8]} 19...
Rh8 {[%clk 0:02:29.9]} 20. Bf3 {[%clk 0:02:14.6]} 20... g5 {[%clk 0:02:28]} 21.
Bd1 {[%clk 0:01:39.3]} 21... a5 {[%clk 0:02:27.1]} 22. Nf3 {[%clk 0:01:35.8]}
22... f6 {[%clk 0:02:26.6]} 23. Kd2 {[%clk 0:01:31.5]} 23... a4 {[%clk
0:02:15.5]} 24. Ke2 {[%clk 0:01:30.2]} 24... Rd8 {[%clk 0:02:12.1]} 25. Kf2
{[%clk 0:01:14.3]} 25... g4 {[%clk 0:02:09.1]} 26. Nh4 {[%clk 0:01:14.1]} 26...
Rd2+ {[%clk 0:02:08.7]} 27. Be2 {[%clk 0:01:13.9]} 27... Rxc2 {[%clk 0:02:07.6]}
28. Nf5+ {[%clk 0:01:11]} 28... Bxf5 {[%clk 0:02:04]} 29. exf5 {[%clk
0:01:11.9]} 29... Rxb2 {[%clk 0:02:02.9]} 30. Rc1 {[%clk 0:01:11.8]} 30... Kd6
{[%clk 0:01:58]} 0-1

[Event "*** Titled Tuesday Blitz"]
[Site "Chess.com"]
[Date "2020.05.26"]
[Round "7"]
[White "Giraffe_Chess"]
[Black "JTCoach"]
[Result "0-1"]
[WhiteElo "2417"]
[BlackElo "2650"]
[TimeControl "180+1"]
[EndTime "11:18:20 PDT"]
[Termination "JTCoach won by resignation"]

1. d4 {[%clk 0:03:00.9]} 1... Nf6 {[%clk 0:02:59.7]} 2. c4 {[%clk 0:03:00.1]}
2... e6 {[%clk 0:02:59.9]} 3. Nf3 {[%clk 0:02:59.7]} 3... c5 {[%clk 0:03:00.1]}
4. d5 {[%clk 0:02:59.2]} 4... exd5 {[%clk 0:03:00.7]} 5. cxd5 {[%clk 0:03:00.1]}
5... d6 {[%clk 0:03:01.3]} 6. Nc3 {[%clk 0:03:00.4]} 6... g6 {[%clk 0:03:01.7]}
7. e4 {[%clk 0:03:00.6]} 7... Bg7 {[%clk 0:03:01.2]} 8. Nd2 {[%clk 0:03:00.9]}
8... O-O {[%clk 0:03:00.9]} 9. Be2 {[%clk 0:03:01.3]} 9... Na6 {[%clk
0:02:50.8]} 10. O-O {[%clk 0:02:59.8]} 10... Nc7 {[%clk 0:02:51]} 11. Re1 {[%clk
0:02:53.8]} 11... Re8 {[%clk 0:02:48.9]} 12. Bf1 {[%clk 0:02:52]} 12... Rb8
{[%clk 0:02:48.7]} 13. a4 {[%clk 0:02:51.3]} 13... a6 {[%clk 0:02:47.6]} 14. a5
{[%clk 0:02:48.7]} 14... Bd7 {[%clk 0:02:47.2]} 15. Nc4 {[%clk 0:02:46.8]} 15...
Bb5 {[%clk 0:02:47.2]} 16. Nb6 {[%clk 0:02:28.8]} 16... Bxf1 {[%clk 0:02:41.6]}
17. Kxf1 {[%clk 0:02:29.7]} 17... Nb5 {[%clk 0:02:41.9]} 18. f3 {[%clk
0:01:54.2]} 18... Nd4 {[%clk 0:02:38.5]} 19. Ne2 {[%clk 0:01:52.3]} 19... Nh5
{[%clk 0:02:29.8]} 20. Be3 {[%clk 0:01:46.9]} 20... Qh4 {[%clk 0:02:10]} 21. Kg1
{[%clk 0:01:40.7]} 21... Be5 {[%clk 0:02:01.3]} 22. g3 {[%clk 0:00:52.3]} 22...
Nxf3+ {[%clk 0:02:00.5]} 23. Kg2 {[%clk 0:00:49.9]} 23... Nxe1+ {[%clk
0:01:57.8]} 24. Qxe1 {[%clk 0:00:50.8]} 24... Qxe4+ {[%clk 0:01:57.3]} 25. Kf2
{[%clk 0:00:48.2]} 25... Bxb2 {[%clk 0:01:55.2]} 0-1

[Event "*** Titled Tuesday Blitz"]
[Site "Chess.com"]
[Date "2020.05.26"]
[Round "7"]
[White "Alexandercs432"]
[Black "nitpicker"]
[Result "0-1"]
[WhiteElo "2121"]
[BlackElo "2292"]
[TimeControl "180+1"]
[EndTime "11:18:22 PDT"]
[Termination "nitpicker won by resignation"]

1. e4 {[%clk 0:03:00.9]} 1... c5 {[%clk 0:02:58.9]} 2. Nf3 {[%clk 0:03:00.9]}
2... e6 {[%clk 0:02:57.3]} 3. d4 {[%clk 0:02:59.6]} 3... cxd4 {[%clk 0:02:57.4]}
4. Nxd4 {[%clk 0:02:59.2]} 4... a6 {[%clk 0:02:57.8]} 5. g3 {[%clk 0:02:58.9]}
5... Qc7 {[%clk 0:02:55.5]} 6. Bg2 {[%clk 0:02:58.7]} 6... Nf6 {[%clk 0:02:55]}
7. O-O {[%clk 0:02:58.4]} 7... Nc6 {[%clk 0:02:47]} 8. Nxc6 {[%clk 0:02:58.5]}
8... bxc6 {[%clk 0:02:42.7]} 9. Be3 {[%clk 0:02:56.5]} 9... Be7 {[%clk
0:02:38.3]} 10. c4 {[%clk 0:02:51.9]} 10... d6 {[%clk 0:02:31]} 11. Nc3 {[%clk
0:02:52.1]} 11... Bb7 {[%clk 0:02:28.2]} 12. Rc1 {[%clk 0:02:52.4]} 12... c5
{[%clk 0:02:28.3]} 13. Re1 {[%clk 0:02:48.2]} 13... O-O {[%clk 0:02:27]} 14. h3
{[%clk 0:02:46.9]} 14... Bc6 {[%clk 0:02:27]} 15. Qd2 {[%clk 0:02:43]} 15...
Rab8 {[%clk 0:02:21.6]} 16. Rcd1 {[%clk 0:02:33.2]} 16... Qb7 {[%clk 0:02:20.8]}
17. b3 {[%clk 0:02:24.5]} 17... Nxe4 {[%clk 0:02:20]} 18. Nxe4 {[%clk
0:02:23.9]} 18... Bxe4 {[%clk 0:02:20]} 19. Bxe4 {[%clk 0:02:24]} 19... Qxe4
{[%clk 0:02:19.6]} 20. Bxc5 {[%clk 0:02:21.4]} 20... Qf5 {[%clk 0:02:19.3]} 21.
Bxd6 {[%clk 0:01:14.2]} 21... Rfd8 {[%clk 0:02:06.3]} 22. Qf4 {[%clk 0:01:12]}
22... Rxd6 {[%clk 0:01:55.7]} 23. Rxd6 {[%clk 0:01:03.3]} 23... Qxf4 {[%clk
0:01:55.2]} 24. gxf4 {[%clk 0:00:44.5]} 24... Bxd6 {[%clk 0:01:54.9]} 25. Rd1
{[%clk 0:00:45.4]} 25... Bxf4 {[%clk 0:01:53.4]} 0-1

[Event "*** Titled Tuesday Blitz"]
[Site "Chess.com"]
[Date "2020.05.26"]
[Round "7"]
[White "DrBergerBerger"]
[Black "imdarealist"]
[Result "1-0"]
[WhiteElo "2361"]
[BlackElo "2205"]
[TimeControl "180+1"]
[EndTime "11:18:39 PDT"]
[Termination "DrBergerBerger won by resignation"]

1. e4 {[%clk 0:03:00.9]} 1... e5 {[%clk 0:02:59.5]} 2. Nf3 {[%clk 0:03:00.4]}
2... Nf6 {[%clk 0:03:00.1]} 3. d4 {[%clk 0:02:56.3]} 3... Nxe4 {[%clk
0:02:59.6]} 4. Bd3 {[%clk 0:02:55.7]} 4... Nc6 {[%clk 0:02:59.9]} 5. dxe5 {[%clk
0:02:50.3]} 5... d5 {[%clk 0:02:52.9]} 6. O-O {[%clk 0:02:38.9]} 6... Bf5 {[%clk
0:02:51.5]} 7. Nbd2 {[%clk 0:02:29.4]} 7... Be7 {[%clk 0:02:27.2]} 8. Qe2 {[%clk
0:02:24]} 8... Bg4 {[%clk 0:02:00.4]} 9. Bxe4 {[%clk 0:02:10.8]} 9... Nd4 {[%clk
0:01:58.3]} 10. Qe3 {[%clk 0:01:50.5]} 10... Ne6 {[%clk 0:01:51.8]} 11. Bd3
{[%clk 0:01:45.4]} 11... Bc5 {[%clk 0:01:49]} 12. Qe1 {[%clk 0:01:39.3]} 12...
Nf4 {[%clk 0:01:49.4]} 13. Nb3 {[%clk 0:01:34.5]} 13... Nxg2 {[%clk 0:01:16.8]}
14. Kxg2 {[%clk 0:01:22.6]} 14... Bxf3+ {[%clk 0:01:16.3]} 15. Kxf3 {[%clk
0:01:22.1]} 15... Qh4 {[%clk 0:01:15.7]} 16. Nxc5 {[%clk 0:01:03.8]} 16... Qh5+
{[%clk 0:01:14.9]} 17. Ke3 {[%clk 0:01:01.9]} 17... d4+ {[%clk 0:01:14.1]} 18.
Kd2 {[%clk 0:00:57.5]} 1-0

[Event "*** Titled Tuesday Blitz"]
[Site "Chess.com"]
[Date "2020.05.26"]
[Round "7"]
[White "Mikhal867"]
[Black "Koalaskakistis"]
[Result "1-0"]
[WhiteElo "2201"]
[BlackElo "2438"]
[TimeControl "180+1"]
[EndTime "11:18:41 PDT"]
[Termination "Mikhal867 won by resignation"]

1. c4 {[%clk 0:03:00.6]} 1... f5 {[%clk 0:02:59.7]} 2. b3 {[%clk 0:03:00.1]}
2... d6 {[%clk 0:02:58.6]} 3. d4 {[%clk 0:02:59.2]} 3... Nf6 {[%clk 0:02:57.3]}
4. Bb2 {[%clk 0:02:58.9]} 4... g6 {[%clk 0:02:55.6]} 5. d5 {[%clk 0:02:57.7]}
5... Bg7 {[%clk 0:02:55]} 6. h4 {[%clk 0:02:57.5]} 6... c6 {[%clk 0:02:54.3]} 7.
Nc3 {[%clk 0:02:49.1]} 7... cxd5 {[%clk 0:02:52.3]} 8. Nxd5 {[%clk 0:02:48.6]}
8... Nbd7 {[%clk 0:02:47.4]} 9. Nf3 {[%clk 0:02:41.3]} 9... O-O {[%clk
0:02:42.3]} 10. e3 {[%clk 0:02:26.7]} 10... e6 {[%clk 0:02:27.9]} 11. Nxf6+
{[%clk 0:02:25.5]} 11... Nxf6 {[%clk 0:02:28.3]} 12. Bd3 {[%clk 0:01:58.9]}
12... Ng4 {[%clk 0:02:26.3]} 13. Bxg7 {[%clk 0:01:57.5]} 13... Kxg7 {[%clk
0:02:27.2]} 14. Qd2 {[%clk 0:01:55.9]} 14... e5 {[%clk 0:02:27.4]} 15. Ng5
{[%clk 0:01:54.2]} 15... h6 {[%clk 0:02:25.1]} 16. Nh3 {[%clk 0:01:54]} 16... e4
{[%clk 0:02:25.4]} 17. Be2 {[%clk 0:01:53.5]} 17... Ne5 {[%clk 0:02:16.2]} 18.
Nf4 {[%clk 0:01:48.9]} 18... Qf6 {[%clk 0:02:02.8]} 19. Rd1 {[%clk 0:01:47.4]}
19... Bd7 {[%clk 0:01:55.6]} 20. Qxd6 {[%clk 0:01:42.9]} 20... Nd3+ {[%clk
0:01:49.6]} 21. Rxd3 {[%clk 0:01:42.4]} 21... exd3 {[%clk 0:01:49.8]} 22. Qxd7+
{[%clk 0:01:42.2]} 22... Rf7 {[%clk 0:01:45.6]} 23. Qxd3 {[%clk 0:01:40.8]}
23... Qa1+ {[%clk 0:01:40.1]} 24. Qd1 {[%clk 0:01:40.1]} 24... Qc3+ {[%clk
0:01:38.7]} 25. Qd2 {[%clk 0:01:38.6]} 25... Qa1+ {[%clk 0:01:38.5]} 26. Bd1
{[%clk 0:01:38.6]} 26... Rd8 {[%clk 0:01:35.3]} 27. Nd5 {[%clk 0:01:38]} 27...
b5 {[%clk 0:01:34.1]} 28. O-O {[%clk 0:01:31.3]} 28... bxc4 {[%clk 0:01:34]} 29.
bxc4 {[%clk 0:01:31.2]} 29... Rb7 {[%clk 0:01:27.1]} 30. Bb3 {[%clk 0:01:28.8]}
30... Qe5 {[%clk 0:01:27.1]} 31. Qd4 {[%clk 0:01:27.8]} 31... Qxd4 {[%clk
0:01:24.8]} 32. exd4 {[%clk 0:01:27.9]} 1-0

[Event "*** Titled Tuesday Blitz"]
[Site "Chess.com"]
[Date "2020.05.26"]
[Round "7"]
[White "FMOlexandrProhorov"]
[Black "Kate1606"]
[Result "0-1"]
[WhiteElo "2068"]
[BlackElo "1548"]
[TimeControl "180+1"]
[EndTime "11:18:49 PDT"]
[Termination "Kate1606 won by resignation"]

1. Nf3 {[%clk 0:03:00.9]} 1... c5 {[%clk 0:02:57.9]} 2. e4 {[%clk 0:03:00.2]}
2... g6 {[%clk 0:02:56.7]} 3. c3 {[%clk 0:03:00.5]} 3... Bg7 {[%clk 0:02:55.7]}
4. d4 {[%clk 0:03:00.9]} 4... cxd4 {[%clk 0:02:55.9]} 5. cxd4 {[%clk 0:03:01.2]}
5... d5 {[%clk 0:02:56.2]} 6. e5 {[%clk 0:02:59.7]} 6... Bg4 {[%clk 0:02:54.8]}
7. Nbd2 {[%clk 0:02:57.9]} 7... Bxf3 {[%clk 0:02:44.4]} 8. Nxf3 {[%clk
0:02:57.6]} 8... e6 {[%clk 0:02:42.1]} 9. Bb5+ {[%clk 0:02:51.5]} 9... Nd7
{[%clk 0:02:36.8]} 10. O-O {[%clk 0:02:51]} 10... a6 {[%clk 0:02:35.8]} 11. Bg5
{[%clk 0:02:46.8]} 11... Ne7 {[%clk 0:02:32.8]} 12. Bd3 {[%clk 0:02:38.1]} 12...
O-O {[%clk 0:02:31.8]} 13. Rc1 {[%clk 0:02:35.5]} 13... f6 {[%clk 0:02:23.9]}
14. exf6 {[%clk 0:02:34]} 14... Nxf6 {[%clk 0:02:20.5]} 15. Re1 {[%clk
0:02:33.4]} 15... Qd6 {[%clk 0:02:18.4]} 16. Ne5 {[%clk 0:02:23.9]} 16... Nf5
{[%clk 0:02:14.1]} 17. Bxf5 {[%clk 0:02:13.8]} 17... exf5 {[%clk 0:02:12.3]} 18.
Qb3 {[%clk 0:02:13.2]} 18... Ne4 {[%clk 0:02:07]} 19. Bf4 {[%clk 0:02:12.1]}
19... g5 {[%clk 0:01:39.8]} 20. Nd3 {[%clk 0:02:03.4]} 20... gxf4 {[%clk
0:01:33.9]} 21. Qxb7 {[%clk 0:01:58.3]} 21... Bxd4 {[%clk 0:01:12.2]} 22. Rc7
{[%clk 0:01:51.3]} 22... Rab8 {[%clk 0:01:10]} 23. Qc6 {[%clk 0:01:42.3]} 23...
Qxc6 {[%clk 0:01:09.7]} 24. Rxc6 {[%clk 0:01:42.8]} 24... Rfc8 {[%clk
0:00:59.3]} 25. Rec1 {[%clk 0:01:41.4]} 25... Rxc6 {[%clk 0:00:53.8]} 26. Rxc6
{[%clk 0:01:42.3]} 26... Nxf2 {[%clk 0:00:48.4]} 0-1

[Event "*** Titled Tuesday Blitz"]
[Site "Chess.com"]
[Date "2020.05.26"]
[Round "7"]
[White "LuckSlayeer"]
[Black "theblitzchamp"]
[Result "0-1"]
[WhiteElo "2469"]
[BlackElo "2687"]
[TimeControl "180+1"]
[EndTime "11:18:59 PDT"]
[Termination "theblitzchamp won by checkmate"]

1. Nf3 {[%clk 0:03:00.9]} 1... Nf6 {[%clk 0:02:59.7]} 2. c4 {[%clk 0:03:00.7]}
2... g6 {[%clk 0:02:59.6]} 3. Nc3 {[%clk 0:03:01.1]} 3... Bg7 {[%clk 0:03:00]}
4. e4 {[%clk 0:03:01.4]} 4... d6 {[%clk 0:02:59.8]} 5. d4 {[%clk 0:03:02]} 5...
O-O {[%clk 0:03:00.4]} 6. Be2 {[%clk 0:03:02.4]} 6... e5 {[%clk 0:03:00.9]} 7.
O-O {[%clk 0:03:02.5]} 7... Nc6 {[%clk 0:03:01.4]} 8. d5 {[%clk 0:03:03.1]} 8...
Ne7 {[%clk 0:03:02]} 9. b4 {[%clk 0:03:03.8]} 9... Nd7 {[%clk 0:03:00.4]} 10.
Nd2 {[%clk 0:02:36.8]} 10... f5 {[%clk 0:02:59.6]} 11. f3 {[%clk 0:02:36.5]}
11... f4 {[%clk 0:02:59.4]} 12. Ba3 {[%clk 0:02:23.7]} 12... Rf7 {[%clk
0:02:58.2]} 13. c5 {[%clk 0:02:23.6]} 13... Bf8 {[%clk 0:02:52.8]} 14. Nc4
{[%clk 0:02:19.2]} 14... Nf6 {[%clk 0:02:47.1]} 15. cxd6 {[%clk 0:02:14.2]}
15... cxd6 {[%clk 0:02:46.6]} 16. b5 {[%clk 0:02:10.3]} 16... Ne8 {[%clk
0:02:44.5]} 17. Bb4 {[%clk 0:02:07.6]} 17... g5 {[%clk 0:02:43.4]} 18. Qb3
{[%clk 0:02:00.5]} 18... h5 {[%clk 0:02:41.7]} 19. Qa3 {[%clk 0:02:00.3]} 19...
Ng6 {[%clk 0:02:41]} 20. b6 {[%clk 0:01:56.2]} 20... a6 {[%clk 0:02:28.2]} 21.
Rac1 {[%clk 0:01:23.8]} 21... g4 {[%clk 0:02:27.1]} 22. Kh1 {[%clk 0:01:23]}
22... g3 {[%clk 0:02:21.4]} 23. h3 {[%clk 0:01:02.7]} 23... Qh4 {[%clk
0:02:19.7]} 24. Nxd6 {[%clk 0:00:17.7]} 24... Bxh3 {[%clk 0:02:05.5]} 25. Bxa6
{[%clk 0:00:03.6]} 25... Bxg2+ {[%clk 0:02:03.3]} 26. Kg1 {[%clk 0:00:02.4]}
26... Qh2# {[%clk 0:02:04.2]} 0-1

[Event "*** Titled Tuesday Blitz"]
[Site "Chess.com"]
[Date "2020.05.26"]
[Round "7"]
[White "archess2"]
[Black "VitaliyBernadskiy"]
[Result "0-1"]
[WhiteElo "2299"]
[BlackElo "2705"]
[TimeControl "180+1"]
[EndTime "11:19:03 PDT"]
[Termination "VitaliyBernadskiy won by resignation"]

1. d4 {[%clk 0:03:00.9]} 1... Nf6 {[%clk 0:02:59.5]} 2. c4 {[%clk 0:02:59.9]}
2... c5 {[%clk 0:02:59.6]} 3. d5 {[%clk 0:02:55.4]} 3... b5 {[%clk 0:02:59]} 4.
cxb5 {[%clk 0:02:54.6]} 4... a6 {[%clk 0:02:59.3]} 5. b6 {[%clk 0:02:54.5]} 5...
d6 {[%clk 0:02:58.4]} 6. Nc3 {[%clk 0:02:54.1]} 6... Nbd7 {[%clk 0:02:58.5]} 7.
a4 {[%clk 0:02:52.6]} 7... Qxb6 {[%clk 0:02:58]} 8. a5 {[%clk 0:02:50]} 8... Qb7
{[%clk 0:02:57.8]} 9. e4 {[%clk 0:02:48.7]} 9... g6 {[%clk 0:02:58.1]} 10. Nf3
{[%clk 0:02:45.3]} 10... Bg7 {[%clk 0:02:56.7]} 11. Nd2 {[%clk 0:02:43]} 11...
O-O {[%clk 0:02:54]} 12. Nc4 {[%clk 0:02:41.6]} 12... Rb8 {[%clk 0:02:51.4]} 13.
Bd3 {[%clk 0:02:37.7]} 13... Ne8 {[%clk 0:02:47.3]} 14. O-O {[%clk 0:02:35.8]}
14... Nc7 {[%clk 0:02:47.4]} 15. Na4 {[%clk 0:02:33]} 15... Nb5 {[%clk
0:02:46.3]} 16. Ncb6 {[%clk 0:02:31.2]} 16... Nd4 {[%clk 0:02:44.5]} 17. Be3
{[%clk 0:02:25.4]} 17... Nxb6 {[%clk 0:02:21.9]} 18. Nxb6 {[%clk 0:02:24]} 18...
Bd7 {[%clk 0:02:22.2]} 19. Bxd4 {[%clk 0:02:21.6]} 19... Bxd4 {[%clk 0:02:21.5]}
20. Qe2 {[%clk 0:02:21.8]} 20... Bc8 {[%clk 0:02:08.6]} 21. Nxc8 {[%clk
0:02:15]} 21... Qxc8 {[%clk 0:02:08]} 22. Bxa6 {[%clk 0:02:14.9]} 22... Qc7
{[%clk 0:02:08.1]} 23. Bb5 {[%clk 0:02:12.9]} 23... Qa7 {[%clk 0:01:38.2]} 24.
h4 {[%clk 0:02:09]} 24... Rb7 {[%clk 0:01:36.1]} 25. h5 {[%clk 0:01:39.3]} 25...
Rfb8 {[%clk 0:01:34.8]} 26. Bc6 {[%clk 0:01:38.5]} 26... Rxb2 {[%clk 0:01:34.5]}
27. Qg4 {[%clk 0:01:35.9]} 27... c4 {[%clk 0:01:30.9]} 28. hxg6 {[%clk
0:01:33.8]} 28... hxg6 {[%clk 0:01:30]} 29. Qf3 {[%clk 0:01:32.2]} 29... R8b3
{[%clk 0:01:26.5]} 30. Qh3 {[%clk 0:01:28.7]} 30... Rxf2 {[%clk 0:01:22.7]} 31.
Qc8+ {[%clk 0:01:26.9]} 31... Kg7 {[%clk 0:01:22.2]} 32. Rxf2 {[%clk 0:01:26.3]}
32... Bxa1 {[%clk 0:01:22.1]} 33. Qe8 {[%clk 0:01:21.5]} 33... Rb1+ {[%clk
0:01:21.8]} 34. Kh2 {[%clk 0:01:12.2]} 34... Be5+ {[%clk 0:01:20.9]} 35. Kh3
{[%clk 0:01:10.5]} 35... Qxf2 {[%clk 0:01:19.9]} 0-1

[Event "*** Titled Tuesday Blitz"]
[Site "Chess.com"]
[Date "2020.05.26"]
[Round "7"]
[White "FMchesstrainer"]
[Black "seastar"]
[Result "1-0"]
[WhiteElo "2416"]
[BlackElo "1992"]
[TimeControl "180+1"]
[EndTime "11:19:06 PDT"]
[Termination "FMchesstrainer won by resignation"]

1. d4 {[%clk 0:02:52.7]} 1... Nf6 {[%clk 0:02:59.1]} 2. Bg5 {[%clk 0:02:52.3]}
2... c5 {[%clk 0:02:58.6]} 3. d5 {[%clk 0:02:52.3]} 3... e6 {[%clk 0:02:58.2]}
4. e4 {[%clk 0:02:50.8]} 4... h6 {[%clk 0:02:45]} 5. Bxf6 {[%clk 0:02:48]} 5...
Qxf6 {[%clk 0:02:43.8]} 6. Nc3 {[%clk 0:02:48.3]} 6... d6 {[%clk 0:02:34.3]} 7.
Nf3 {[%clk 0:02:44.8]} 7... e5 {[%clk 0:02:30.8]} 8. Bb5+ {[%clk 0:02:44.1]}
8... Bd7 {[%clk 0:02:29.4]} 9. a4 {[%clk 0:02:44.5]} 9... a6 {[%clk 0:02:29.4]}
10. Be2 {[%clk 0:02:42.7]} 10... Be7 {[%clk 0:02:25.2]} 11. Nd2 {[%clk
0:02:43.1]} 11... O-O {[%clk 0:02:25.3]} 12. Nc4 {[%clk 0:02:43.5]} 12... Bd8
{[%clk 0:02:01.5]} 13. O-O {[%clk 0:02:40.1]} 13... Qe7 {[%clk 0:01:48.9]} 14.
a5 {[%clk 0:02:33.1]} 14... Bb5 {[%clk 0:01:43.9]} 15. Ne3 {[%clk 0:02:30.8]}
15... Bxe2 {[%clk 0:01:34.1]} 16. Qxe2 {[%clk 0:02:31.7]} 16... g6 {[%clk
0:01:33.5]} 17. f4 {[%clk 0:02:25]} 17... exf4 {[%clk 0:01:31.5]} 18. Rxf4
{[%clk 0:02:25]} 18... Nd7 {[%clk 0:01:29.9]} 19. Nc4 {[%clk 0:02:21.1]} 19...
Ne5 {[%clk 0:01:26.8]} 20. Raf1 {[%clk 0:02:13.4]} 20... Nxc4 {[%clk 0:01:22.9]}
21. Qxc4 {[%clk 0:02:14.3]} 21... Qe5 {[%clk 0:01:22.9]} 22. b4 {[%clk
0:02:06.7]} 22... Bg5 {[%clk 0:01:12.8]} 23. R4f3 {[%clk 0:02:01.2]} 23... Rac8
{[%clk 0:01:11.7]} 24. b5 {[%clk 0:02:00.4]} 24... axb5 {[%clk 0:01:00.7]} 25.
Qxb5 {[%clk 0:01:58.5]} 25... Rc7 {[%clk 0:00:57.8]} 26. Kh1 {[%clk 0:01:54]}
26... c4 {[%clk 0:00:48.6]} 27. Qb6 {[%clk 0:01:27.9]} 27... Kg7 {[%clk
0:00:39.6]} 28. Qxc7 {[%clk 0:01:25.4]} 1-0

[Event "*** Titled Tuesday Blitz"]
[Site "Chess.com"]
[Date "2020.05.26"]
[Round "7"]
[White "Chepaschess"]
[Black "valeriocarnicelli"]
[Result "1-0"]
[WhiteElo "2816"]
[BlackElo "2587"]
[TimeControl "180+1"]
[EndTime "11:19:08 PDT"]
[Termination "Chepaschess won by resignation"]

1. Nf3 {[%clk 0:03:00.9]} 1... Nf6 {[%clk 0:02:53.8]} 2. c4 {[%clk 0:03:00.5]}
2... g6 {[%clk 0:02:53.9]} 3. Nc3 {[%clk 0:03:00.2]} 3... Bg7 {[%clk 0:02:54.2]}
4. e4 {[%clk 0:03:00.3]} 4... d6 {[%clk 0:02:54.5]} 5. d4 {[%clk 0:03:00.7]}
5... O-O {[%clk 0:02:54.9]} 6. Be2 {[%clk 0:03:01.4]} 6... Na6 {[%clk
0:02:55.1]} 7. O-O {[%clk 0:03:01.2]} 7... e5 {[%clk 0:02:55.4]} 8. Be3 {[%clk
0:03:00.7]} 8... Ng4 {[%clk 0:02:55.3]} 9. Bg5 {[%clk 0:03:00.3]} 9... Qe8
{[%clk 0:02:55.5]} 10. Re1 {[%clk 0:02:42.8]} 10... exd4 {[%clk 0:02:55]} 11.
Nxd4 {[%clk 0:02:31.4]} 11... Qe5 {[%clk 0:02:54.6]} 12. Nf3 {[%clk 0:02:29.2]}
12... Qc5 {[%clk 0:02:54.7]} 13. Bh4 {[%clk 0:02:25.7]} 13... Be6 {[%clk
0:02:54.7]} 14. Rc1 {[%clk 0:02:17.9]} 14... h5 {[%clk 0:02:23.7]} 15. h3 {[%clk
0:02:02.6]} 15... Ne5 {[%clk 0:02:18.1]} 16. b3 {[%clk 0:01:54]} 16... Nxf3+
{[%clk 0:02:17.3]} 17. Bxf3 {[%clk 0:01:54.5]} 17... Qd4 {[%clk 0:02:03.4]} 18.
Qe2 {[%clk 0:01:48.7]} 18... Nc5 {[%clk 0:02:00.6]} 19. Nb5 {[%clk 0:01:46.3]}
19... Qd3 {[%clk 0:01:49]} 20. Nxc7 {[%clk 0:01:45.8]} 20... Rac8 {[%clk
0:01:48.7]} 21. Nxe6 {[%clk 0:01:42.2]} 21... fxe6 {[%clk 0:01:48.9]} 22. Rcd1
{[%clk 0:01:41.1]} 22... Qxe2 {[%clk 0:01:44.8]} 23. Rxe2 {[%clk 0:01:42]} 23...
Be5 {[%clk 0:01:42.8]} 24. Be7 {[%clk 0:01:39.2]} 24... Rf7 {[%clk 0:01:43]} 25.
Bg5 {[%clk 0:01:25.6]} 25... a5 {[%clk 0:01:38.2]} 26. Red2 {[%clk 0:01:24.7]}
26... Rc6 {[%clk 0:01:37.1]} 27. h4 {[%clk 0:01:21.5]} 27... Ra6 {[%clk
0:01:29.1]} 28. Be3 {[%clk 0:01:19.3]} 28... Rc6 {[%clk 0:01:27.4]} 29. Kf1
{[%clk 0:01:14.6]} 29... Kf8 {[%clk 0:01:27.3]} 30. Ke2 {[%clk 0:01:14.9]} 30...
Ke7 {[%clk 0:01:27.3]} 31. g3 {[%clk 0:01:15.4]} 31... Kd7 {[%clk 0:01:26.6]}
32. Bg2 {[%clk 0:01:15.9]} 32... Bc3 {[%clk 0:01:16.5]} 33. Rc2 {[%clk
0:01:13.7]} 33... Be5 {[%clk 0:01:16.6]} 34. f4 {[%clk 0:01:13.3]} 34... Bg7
{[%clk 0:01:14.8]} 35. e5 {[%clk 0:01:13.6]} 1-0